Cogmind - Beta 15 @@@ ROGUE MODE // 2025.07.25 @ 23:31:46 Player: Inverisimilidude Result: Destroyed self with Rocket Launcher Performance ------------- Evolutions (2) 1000 Regions Visited (6) 1200 Robots Destroyed (39) 195 Value Destroyed (881) 881 Prototype IDs (24) 480 Alien Tech Used (0) 0 Bonus (1120) 1120 TOTAL SCORE: 4876 Bonus ------- Follower Combat Kills 120 Entered Garrisons 200 Used RIF Installer 500 Aligned with FarCom 300 Cogmind --------- Core Integrity 0/550 Matter 235/300 Energy 100/100 System Corruption 3% Temperature Cool (0) Movement Rolling (130) Ox2 Location -8/Garrison Parts ------- > --- POWER (1) -------- (None) > --- PROPULSION (4) --- Compact Wheel > --- UTILITY (4) ------ Large Storage Unit Improved Medium Armor Plating Splice Drone Bay (5/6) > --- WEAPON (2) ------- Rocket Launcher > --- INVENTORY (15) --- Large Storage Unit Advanced Weight Redist. System Signal Interpreter Improved Signal Interpreter Heavy EM Pulse Gun Improved EM Pulse Cannon Latent Energy Streamer Assault Rifle Grenade Launcher Makeshift Axe Peak State ------------ > --- POWER ------------ Ion Engine > --- PROPULSION ------- Wheel Wheel Wheel Compact Wheel > --- UTILITY ---------- Improved Heat Sink Large Storage Unit Particle Charger Improved Medium Armor Plating > --- WEAPON ----------- Beam Rifle Improved EM Pulse Cannon > --- INVENTORY -------- Light Nuclear Core Compact Wheel Compact Wheel Large Storage Unit Advanced Weight Redist. System Signal Interpreter Improved Signal Interpreter Improved Medium Armor Plating Splice Drone Bay Heavy EM Pulse Gun Medium Laser Latent Energy Streamer Grenade Launcher Rocket Launcher Makeshift Axe [Rating: 26] Favorites ----------- Power Ion Engine Engine Ion Engine Power Core Light Nuclear Core Propulsion Wheel Wheel Wheel Utility Large Storage Unit Device Seismic Detector Storage Large Storage Unit Protection Improved Medium Armor Plating Weapon Medium Laser Energy Gun Medium Laser Energy Cannon Improved EM Pulse Cannon Ballistic Gun Light Assault Rifle Launcher Grenade Launcher Slashing Weapon Makeshift Axe Build | -11 -10 -10 -10 -9 -8 -8 ------- Run | Yrd Mat Min Exi Min Mat Gar Slots Evolved 4 | . . . . . 4 . Power . | . . . . . . . Propulsion 2 | . . . . . 2 . Utility 2 | . . . . . 2 . Weapon . | . . . . . . . Parts Attached 37 | 6 7 4 1 1 10 8 Power 4 | 1 1 . . . 1 1 Engine 3 | 1 1 . . . 1 . Core 1 | . . . . . . 1 Reactor . | . . . . . . . Propulsion 12 | 2 2 2 . 1 3 2 Treads . | . . . . . . . Leg . | . . . . . . . Wheel 12 | 2 2 2 . 1 3 2 Hover . | . . . . . . . Flight . | . . . . . . . Utility 9 | 1 2 2 . . 3 1 Device 5 | . 1 2 . . 2 . Storage 2 | 1 1 . . . . . Processor . | . . . . . . . Hackware . | . . . . . . . Protection 2 | . . . . . 1 1 Artifact . | . . . . . . . Weapon 12 | 2 2 . 1 . 3 4 Energy Gun 5 | 2 . . . . 2 1 Energy Cannon 2 | . . . 1 . . 1 Ballistic Gun 1 | . 1 . . . . . Ballistic Cannon . | . . . . . . . Launcher 3 | . 1 . . . . 2 Special Weapon . | . . . . . . . Impact Weapon . | . . . . . . . Slashing Weapon 1 | . . . . . 1 . Piercing Weapon . | . . . . . . . Special Melee Weapon . | . . . . . . . Unidentified Prototypes 1 | . . 1 . . . . Parts Lost 15 | . 1 . . 1 1 12 Power 3 | . . . . . 1 2 Propulsion 7 | . 1 . . 1 . 5 Utility 3 | . . . . . . 3 Weapon 2 | . . . . . . 2 Highest Loss Streak 11 | . 1 . . 1 1 11 To Critical Strikes . | . . . . . . . Average Backups 11 | 1 7 11 12 12 14 12 Power . | . 1 1 1 1 . . Propulsion 2 | . 2 3 3 2 . . Utility 2 | . . 2 3 3 4 5 Weapon 5 | . 3 5 5 6 7 6 Tool/Special . | . . . . . . . Unused Backups 10 | . 4 . . . . 6 Power . | . . . . . . . Propulsion 4 | . 4 . . . . . Utility 4 | . . . . . . 4 Weapon 2 | . . . . . . 2 Tool/Special . | . . . . . . . Average Slot Usage (%) 92 | . 90 100 100 99 85 60 Engine 12 | . 14 14 14 14 8 3 Wheel 27 | . 27 28 28 27 35 18 Device 12 | . 5 14 14 14 12 12 Storage 12 | . 14 14 14 14 9 9 Energy Gun 13 | . 21 11 14 14 16 5 Ballistic Gun 9 | . 5 14 13 13 1 . Peak Build Rating 26 | 6 10 14 18 18 23 26 Average Rating 11 | 3 8 9 10 10 16 18 On Entrance 9 | . 6 10 9 10 10 23 Naked Turns . | . . . . . . . Heaviest Build 46 | 12 30 30 38 38 41 46 Greatest Support 52 | 26 26 20 20 20 46 52 Greatest Overweight (x) 2 | . 1 1 1 1 1 2 Average Overweight (x) . | . . 1 1 1 . . Largest Inventory Capacity 15 | 8 15 15 15 15 15 15 Average Capacity 13 | 7 9 15 15 15 15 15 Most Carried 15 | 3 10 13 14 14 15 15 Average Carried 11 | 1 8 11 12 12 14 12 Final Capacity 15 | 8 15 15 15 15 15 15 Final Carried 15 | 3 10 12 13 14 15 10 Class Distribution -------------------- 100% | Mutant Dominant Class ---------------- Mutant | -10/Materials Mutant | -10/Mines Mutant | -10/Exiles Mutant | -9/Mines Mutant | -8/Materials Mutant | -8/Garrison Resources | -11 -10 -10 -10 -9 -8 -8 ----------- Run | Yrd Mat Min Exi Min Mat Gar Matter Collected 737 | 202 121 82 90 55 55 132 Remotely . | . . . . . . . Salvage Created 992 | . 364 51 . 126 101 350 Parts 74 | . 29 10 . 9 10 16 Haulers Intercepted . | . . . . . . . Recyclers Shooed 1 | . 1 . . . . . Parts Field Recycled . | . . . . . . . Retrieved Matter . | . . . . . . . Parts Self-Destructed . | . . . . . . . Prevented . | . . . . . . . Kills | -11 -10 -10 -10 -9 -8 -8 ------- Run | Yrd Mat Min Exi Min Mat Gar Combat Hostiles Destroyed 29 | . 9 3 . 6 1 10 Melee 1 | . . . . . . 1 Guns 13 | . 6 . . 5 1 1 Cannons 1 | . . . . . . 1 AOE 13 | . 3 3 . . . 7 Classes Destroyed 9 | . 5 1 . . 1 2 Worker 4 | . 4 . . . . . Builder 1 | . 1 . . . . . Tunneler 1 | . . 1 . . . . Watcher 4 | . 2 . . . 2 . Swarmer 14 | . 5 3 . 5 . 1 Saboteur 1 | . . . . . . 1 Grunt 10 | . 4 . . 1 . 5 Sentry 2 | . . . . . 1 1 Hunter 2 | . . . . . . 2 Best Kill Streak 7 | . 5 3 . 4 2 7 Combat Bots Only 7 | . 3 3 . 4 1 7 Max Kills in Single Turn 4 | . 3 2 . 1 1 4 Gunslinging . | . . . . . . . Exploded 4 | . 1 2 . . . 4 Melee 1 | . . . . . . 1 Uniques/NPCs Destroyed . | . . . . . . . Combat | -11 -10 -10 -10 -9 -8 -8 -------- Run | Yrd Mat Min Exi Min Mat Gar Hostile Shots Fired 216 | . 39 13 . 33 15 116 Missed 57 | . 10 6 . 6 2 33 Hits 159 | . 29 7 . 27 13 83 Projectile 159 | . 29 7 . 27 13 83 Critical Strikes 3 | . . 1 . . . 2 Damage Taken 2518 | . 264 60 . 241 188 1765 Core 708 | . 80 . . 52 43 533 Absorbed by Shields . | . . . . . . . Core Remaining (%) 73 | 100 . . . 47 . . Volleys Fired 78 | . 32 3 . 13 10 20 Largest 2 | . 2 2 . 2 2 2 Hottest 125 | . 90 70 . 70 100 125 Shots Fired 141 | . 64 4 . 25 20 28 Gun 124 | . 61 2 . 24 20 17 Cannon 7 | . . . . 1 . 6 Launcher 10 | . 3 2 . . . 5 Special . | . . . . . . . Kinetic 27 | . 14 1 . 12 . . Thermal 76 | . 29 1 . 12 20 14 Explosive 10 | . 3 2 . . . 5 Electromagnetic 28 | . 18 . . 1 . 9 Robot Hit Streak 9 | . 9 1 . 5 5 7 Robot Miss Streak 3 | . 3 3 . 2 3 2 Penetration Max . | . . . . . . . Secondary Targets 2 | . 1 . . 1 . . Max Gunslinging Chain 1 | . 1 . . 1 . . Shots Hit Robots 82 | . 35 1 . 14 13 19 Core Hits 62 | . 23 4 . 6 8 21 Critical Kills . | . . . . . . . Critical Parts Destroyed . | . . . . . . . Critical Strikes 7 | . 2 . . 1 4 . Burn 7 | . 2 . . 1 4 . Melee Attacks 4 | . . . . . 1 3 Impact . | . . . . . . . Slashing 4 | . . . . . 1 3 Piercing . | . . . . . . . Sneak Attacks . | . . . . . . . Combat Hostiles . | . . . . . . . Follow-up Attacks . | . . . . . . . Damage Inflicted 2175 | . 781 85 . 272 164 873 Guns 894 | . 448 10 . 142 164 130 Cannons 121 | . . . . . . 121 Explosions 1062 | . 333 75 . 123 . 531 Melee 80 | . . . . . . 80 Ramming 18 | . . . . 7 . 11 Kinetic 131 | . 67 10 . 54 . . Thermal 666 | . 312 . . 88 164 102 Explosive 828 | . 270 75 . . . 483 Electromagnetic 452 | . 132 . . 123 . 197 Impact . | . . . . . . . Slashing 80 | . . . . . . 80 Piercing . | . . . . . . . Highest Corruption 3 | . . . . 3 . 3 Average Corruption 2 | . . . . 3 . 2 Corruption Purged . | . . . . . . . Corruption Blocked . | . . . . . . . Effects 15 | . . . . 14 . 1 Message Errors 5 | . . . . 5 . . Matter Fused 4 | . . . . 3 . 1 Energy Discharges 2 | . . . . 2 . . Data Loss (minor) 3 | . . . . 3 . . Data Loss (major) 1 | . . . . 1 . . Overload Shots . | . . . . . . . Overflow Damage 30 | . . . . 11 . 19 Projectiles . | . . . . . . . Explosions 30 | . . . . 11 . 19 Melee . | . . . . . . . Knockbacks . | . . . . . . . Impact . | . . . . . . . Kinetic . | . . . . . . . Secondary . | . . . . . . . Self-Inflicted Damage 105 | . . . . 3 . 102 Shots 2 | . . . . . . 2 Rammed 5 | . . . . 1 . 4 Targets Rammed 5 | . . . . 1 . 4 Kicked . | . . . . . . . Crushed . | . . . . . . . Highest Temperature 240 | . 240 30 . 130 2 40 Average Temperature 63 | . 82 18 . 53 2 15 Received Heat Transfer 372 | . 72 . . 9 54 237 Siege Activations . | . . . . . . . Martial Activations . | . . . . . . . Shielding Activations . | . . . . . . . Robots Disrupted . | . . . . . . . Combat Hostiles . | . . . . . . . Robots Corrupted 1 | . . . . 1 . . Combat Hostiles 1 | . . . . 1 . . Parts Fried 1 | . . . . 1 . . Impact Corruptions . | . . . . . . . Robots Melted . | . . . . . . . Combat Hostiles . | . . . . . . . Parts Melted 5 | . 4 . . . 1 . Heat Transferred 2261 | . 988 . . 333 777 163 Parts Sabotaged . | . . . . . . . Parts Stolen . | . . . . . . . Parts Stripped . | . . . . . . . Power Chain Reactions 1 | . 1 . . . . . Latent Energy Used 319 | . . . . 200 . 119 LE Corruption 5 | . . . . 3 . 2 Alert | -11 -10 -10 -10 -9 -8 -8 ------- Run | Yrd Mat Min Exi Min Mat Gar Maximum Alert Level . | . . . . . . . Low Security (%) 100 | 100 100 100 . 100 100 100 Level 1 . | . . . . . . . Level 2 . | . . . . . . . Level 3 . | . . . . . . . Level 4 . | . . . . . . . Level 5 . | . . . . . . . High Security . | . . . . . . . Max Security . | . . . . . . . Peak Influence 188 | . 107 111 . 90 30 188 Initial 38 | . . 38 . . 16 2 Average 28 | . 25 26 . 24 11 63 Influence Increases 1037 | . 274 88 . 292 125 258 Destroy 0b10 Robot/C 700 | . 180 60 . 220 40 200 Destroy 0b10 Robot/NC 50 | . 35 5 . . 10 . Destroy Leader 98 | . 34 10 . 30 24 . Allied During Kill 14 | . . . . 12 2 . Successful Hack 30 | . . . . 12 4 14 Disable Machine 15 | . . . . . 15 . Destroy Structure 70 | . 25 13 . 18 . 14 Partial Spotted 15 | . . . . . 15 . Lose Combat Pursuer 45 | . . . . . 15 30 Influence Decreases 849 | . 175 187 . 250 163 74 Entered New Map 89 | . . 61 . . 26 2 Time Decay 639 | . 175 126 . 220 118 . Lost Part 72 | . . . . 10 10 52 Lost Ally 49 | . . . . 20 9 20 Squads Dispatched 3 | . 2 . . 1 . . Investigation 1 | . . . . 1 . . Extermination . | . . . . . . . Reinforcement 2 | . 2 . . . . . Assault . | . . . . . . . Garrison . | . . . . . . . Intercept . | . . . . . . . Searches Triggered . | . . . . . . . Construction Impeded . | . . . . . . . Haulers Reinforced . | . . . . . . . Active Scanning Responses . | . . . . . . . Cargo Convoy Interrupts . | . . . . . . . Stealth | -11 -10 -10 -10 -9 -8 -8 --------- Run | Yrd Mat Min Exi Min Mat Gar Distress Signals 4 | . 2 . . . 1 1 Communications Jammed . | . . . . . . . Distress Signals . | . . . . . . . Times Spotted 47 | . 15 3 . 7 8 14 Peak Tracking Total 7 | . 6 3 . 4 3 7 Tactical Retreats 3 | . . . . . 1 2 Traps | -11 -10 -10 -10 -9 -8 -8 ------- Run | Yrd Mat Min Exi Min Mat Gar Traps Triggered 2 | . . . . . . 2 Indirectly . | . . . . . . . Trap Hack Attempts . | . . . . . . . Triggered . | . . . . . . . Disarmed 6 | . 6 . . . . . Reprogrammed . | . . . . . . . Reused . | . . . . . . . Traps Extracted . | . . . . . . . Installed . | . . . . . . . Triggered . | . . . . . . . Machines | -11 -10 -10 -10 -9 -8 -8 ---------- Run | Yrd Mat Min Exi Min Mat Gar Machines Disabled 2 | . . . . 1 1 . Max in Single Turn 1 | . . . . . 1 . Machines Repaired . | . . . . . . . Machines Dismantled . | . . . . . . . Machines Sabotaged . | . . . . . . . Overloaded Fab Kills . | . . . . . . . Hacking | -11 -10 -10 -10 -9 -8 -8 --------- Run | Yrd Mat Min Exi Min Mat Gar Machines Accessed 10 | . 2 2 2 1 2 1 Terminals 6 | . 2 1 . 1 1 1 Fabricators . | . . . . . . . Repair Stations . | . . . . . . . Recycling Units . | . . . . . . . Scanalyzers . | . . . . . . . Garrison Access 1 | . . . . . 1 . Total Hacks 19 | . 3 3 3 3 5 2 Successful 12 | . 3 1 3 2 2 1 Failed 7 | . . 2 . 1 3 1 Catastrophic . | . . . . . . . Database Lockouts . | . . . . . . . Manual 3 | . . . 1 1 . 1 Terminals 12 | . 3 2 . 3 2 2 Fabricators . | . . . . . . . Repair Stations . | . . . . . . . Recycling Units . | . . . . . . . Scanalyzers . | . . . . . . . Garrison Access 3 | . . . . . 3 . Terminal Hacks 10 | . 3 1 3 1 1 1 Record 2 | . . . 2 . . . Robot Analysis 1 | . 1 . . . . . Open Door 1 | . . 1 . . . . Emergency Access Points 1 | . . . . . . 1 Locate Traps 2 | . 1 . . . 1 . Disarm Traps 1 | . 1 . . . . . Patrol Status 1 | . . . . 1 . . Proto ID Catalog 1 | . . . 1 . . . Fabricator Hacks . | . . . . . . . Repair Station Hacks . | . . . . . . . Recycling Unit Hacks . | . . . . . . . Scanalyzer . | . . . . . . . Garrison Access Hacks 1 | . . . . . 1 . Unlock Access 1 | . . . . . 1 . Unauthorized Hacks 1 | . . . . 1 . . Terminals 1 | . . . . 1 . . Botnet 1 | . . . . 1 . . Fabricators . | . . . . . . . Repair Stations . | . . . . . . . Recycling Units . | . . . . . . . Scanalyzers . | . . . . . . . Garrison Access . | . . . . . . . Data Cores Recovered . | . . . . . . . Used . | . . . . . . . Hacking Detections 5 | . 1 1 . 1 1 1 Full Trace Events 1 | . . . . 1 . . Feedback Events . | . . . . . . . Feedback Blocked . | . . . . . . . Robot Schematics Acquired . | . . . . . . . Robots Built . | . . . . . . . Authchips . | . . . . . . . Time . | . . . . . . . Total Robot Build Rating . | . . . . . . . Part Schematics Acquired . | . . . . . . . Parts Built . | . . . . . . . Authchips . | . . . . . . . Time . | . . . . . . . Total Part Build Rating . | . . . . . . . Parts Repaired . | . . . . . . . Time . | . . . . . . . Parts Recycled . | . . . . . . . Recycled Matter . | . . . . . . . Retrieved Matter . | . . . . . . . Retrieved Components . | . . . . . . . Parts Scanalyzed . | . . . . . . . Part Schematics Acquired . | . . . . . . . Parts Damaged . | . . . . . . . Bothacking | -11 -10 -10 -10 -9 -8 -8 ------------ Run | Yrd Mat Min Exi Min Mat Gar Used RIF Installer 1 | . . . . . . 1 Robots Hacked . | . . . . . . . Non-combat . | . . . . . . . Combat . | . . . . . . . Robot Hacks Applied . | . . . . . . . Relay Couplers Released . | . . . . . . . Fabnet Peak Effective % . | . . . . . . . Robots Rewired . | . . . . . . . Allies Hacked . | . . . . . . . Hacks Repelled . | . . . . . . . Allies | -11 -10 -10 -10 -9 -8 -8 -------- Run | Yrd Mat Min Exi Min Mat Gar Total Allies 3 | . . . . 3 . . Largest Group 3 | . . . . 3 1 . Highest-Rated Group 40 | . . . . 40 16 . Highest-Rated Ally 16 | . . . . 16 16 . Total Orders . | . . . . . . . Ally Attacks 43 | . . . . 24 10 9 Total Damage 460 | . . . . 270 137 53 Kills 6 | . . . . 5 1 . Allies Corrupted . | . . . . . . . Allies Melted . | . . . . . . . Intel | -11 -10 -10 -10 -9 -8 -8 ------- Run | Yrd Mat Min Exi Min Mat Gar Active Infowar (turns) 2147 | . . 449 695 928 75 . Seismic 2147 | . . 449 695 928 75 . Robot Analysis Total 1 | . 1 . . . . . Derelict Logs Recovered 5 | . . 3 . 2 . . Drone Launches 9 | . . . . . . 9 Drone Recoveries 8 | . . . . . . 8 Exploration | -11 -10 -10 -10 -9 -8 -8 ------------- Run | Yrd Mat Min Exi Min Mat Gar Turns Passed 3496 | 57 530 559 696 928 317 409 Spaces Moved 3061 | 58 447 485 712 794 309 256 Core 17 | 17 . . . . . . Treads . | . . . . . . . Legs . | . . . . . . . Wheels 3044 | 41 447 485 712 794 309 256 Hover . | . . . . . . . Flight . | . . . . . . . Fastest Speed 50 | 50 80 95 95 95 80 85 Average Speed 93 | 78 87 95 95 95 81 106 Slowest Speed 130 | 100 95 95 95 95 95 130 Overloaded Moves . | . . . . . . . Propulsion Burnouts . | . . . . . . . Robots Hopped . | . . . . . . . Potential Cave-ins . | . . . . . . . Cave-ins Triggered . | . . . . . . . Exploration Rate (%) 59 | 3 77 88 94 90 31 36 Regions Visited 6 Branch Regions 3 Pre-discovered Areas 3 | . . 1 . 2 . . Known Exits Taken 1 | . . . . . 1 . Unknown Exits Taken 5 | 1 1 1 1 1 . . Scrap Searched 3 | . . 1 . 2 . . Spaces Dug 8 | . 8 . . . . . Terrain Destroyed 100 | . 23 16 . 35 . 26 Melee . | . . . . . . . Projectile . | . . . . . . . AOE 100 | . 23 16 . 35 . 26 Terrain Rammed . | . . . . . . . Walls Destroyed . | . . . . . . . Machines Disabled . | . . . . . . . Actions | -11 -10 -10 -10 -9 -8 -8 --------- Run | Yrd Mat Min Exi Min Mat Gar Total 3560 | 66 527 578 731 945 351 362 Wait 300 | . 14 80 12 132 6 56 Move 3055 | 57 446 484 711 793 308 256 Hop . | . . . . . . . Pick Up 36 | 3 19 . 2 2 9 1 Fast Attach 13 | 6 1 3 . . 2 1 Attach 19 | . 3 . 2 2 4 8 Detach 6 | . . 2 1 1 . 2 Swap 17 | . 3 3 2 1 5 3 Drop 20 | . 9 3 1 . 6 1 Fire 78 | . 32 3 . 13 10 20 Melee 4 | . . . . . 1 3 Ram 5 | . . . . 1 . 4 Kick . | . . . . . . . Crush . | . . . . . . . Escape Stasis . | . . . . . . . Rewire 7 | . . . . . . 7 Trap . | . . . . . . . Miscellaneous . | . . . . . . . Route ------- -11/Scrapyard -10/Materials (discovered 4 exits: [*Mat x2] / *Min x2) -10/Mines (discovered 3 exits: [*Mat] / *Exi / [*Sub]) -10/Exiles (discovered 2 exits: *Min x2) -9/Mines -8/Materials (discovered 3 exits: *Fac x2 / Gar) -8/Garrison History --------- Turn | Location | Event 8 | -11/Scrapyard | Discovered new exit (range 13) 58 | -11/Scrapyard | Entered Materials 152 | -10/Materials | Discovered new exit (range 7) 275 | -10/Materials | Discovered new exit (range 9) 305 | -10/Materials | Build established: Mutant 478 | -10/Materials | Discovered new exit (range 13) 579 | -10/Materials | Discovered new exit (range 10) 588 | -10/Materials | Entered Mines 664 | -10/Mines | Learned 2 Materials zone layouts 705 | -10/Mines | Learned 2 Materials zone layouts 711 | -10/Mines | Found the Drone Emporium 724 | -10/Mines | Found Prototype Device 724 | -10/Mines | Identified Splice Drone Bay 941 | -10/Mines | Discovered new exit (range 11) 1004 | -10/Mines | Discovered new exit (range 15) 1143 | -10/Mines | Deemed a non-threat by the Exiles lab entrance 1143 | -10/Mines | Discovered new exit (range 5) 1147 | -10/Mines | Entered Exiles 1162 | -10/Exiles | Discovered new exit (range 15) 1173 | -10/Exiles | Met 8R-AWN 1190 | -10/Exiles | Met EX-HEX 1224 | -10/Exiles | Met EX-BIN 1286 | -10/Exiles | Aligned with FarCom system 1287 | -10/Exiles | Given EX-Vault access code 1313 | -10/Exiles | Opened EX-Vault 1320 | -10/Exiles | Found Latent Energy Streamer 1395 | -10/Exiles | Warned to stay clear of 0b10 Research branches 1492 | -10/Exiles | Met EX-DEC 1512 | -10/Exiles | Visited The Gauntlet 1834 | -10/Exiles | Discovered new exit (range 11) 1843 | -10/Exiles | Left Exiles lab with Latent Energy Streamer 1843 | -10/Exiles | Entered Mines 1845 | -9/Mines | Met a Derelict bent on vengeance 2128 | -9/Mines | Assisted by bots powering up and referring to "LRC-V3" 2218 | -9/Mines | Joined a pair of Derelicts in attacking an 0b10 outpost 2351 | -9/Mines | A weapon hastily lodged in a ceiling crevice suddenly fell to the ground 2385 | -9/Mines | Discovered new exit (range 13) 2432 | -9/Mines | Found a hidden stash of uninstalled traps 2469 | -9/Mines | Received a Rocket Launcher from a helpful Derelict 2482 | -9/Mines | Learned location of Zion (-7) 2667 | -9/Mines | Core integrity fell below 50% 2771 | -9/Mines | Entered Materials 2771 | -8/Materials | Accompanied by 1 ally 2771 | -8/Materials | Evolved 4 slots: Propulsion x2, Utility x2 2772 | -8/Materials | Identified exit to Factory 3020 | -8/Materials | Discovered exit to Factory (range 15) 3086 | -8/Materials | Identified exit to Garrison 3088 | -8/Materials | Entered Garrison 3196 | -8/Garrison | Spotted B-75 Beast 3254 | -8/Garrison | Core integrity fell below 50% 3290 | -8/Garrison | Lost 11 parts (2p5n3u1w) 3293 | -8/Garrison | Core integrity fell below 20% 3332 | -8/Garrison | Triggered checkpoint 3333 | -8/Garrison | Triggered checkpoint 3371 | -8/Garrison | Installed Relay Interface Framework 3405 | -8/Garrison | Destroyed 7 combat bots 3420 | -8/Garrison | Triggered checkpoint 3497 | -8/Garrison | Destroyed self with Rocket Launcher Last Messages --------------- 03371_ Relay Interface Framework installed. 03373_ Y-45 Defender heat damages Broken Lgt. Treads. 03377_ G-47 Trooper destroyed. 03379_ Med. Laser destroyed. 03379_ Destroyed Med. Laser. 03381_ G-47 Trooper destroyed. 03381_ Destroyed Lgt. Treads. 03381_ G-47 Trooper destroyed. 03385_ The unstable cave ceiling collapses. 03385_ Aluminum Leg crushed. 03394_ Acquired 22 matter. 03398_ The unstable cave ceiling collapses. 03400_ System corrupted: Matter fused (-10). 03410_ Connecting with Garrison Terminal... 03420_ Beams of light sweep through the air. An alarm sounds. 03481_ W-25 Informer springs to life. 03484_ W-25 Informer sends out distress signal. 03489_ Slammed into S-10 Pest. Map ----- +----------------------------------------------------+ | ???# #??????????????????????????? | | ???# #??????????????????????????? | | ???+ #??????????????????????????? | | ???### ## ## ###??????????????????????????? | | #+#### ## ## ############?????????????????? | | ?????????????????? | | #???????????????????? | | #+#T## ####+#???????????????????????? | | ??######### ## ##???????????????????+????????? | | ??????????# ## #?????????????????????????????? | | ??????????#+##### #?????????????????????????????? | | ????????????????# #??????+??+???????????????????? | | ????????????????# #?????????????????????????????? | | ????????????????# +?????????????????????????????? | | ????????????????# #????????????????????+????????? | | ????????????????# ######## #?????????g?????????? | | ????????????????# g#???????????????????? | | ????????????????# gl ???????????????? | | ????????????????##+######## s##??????????????????? | | ?????????????????# #?????????????????????????????? | | ?????????????????#w#????????s????????????????????? | | ?????????????????# #?????????????????????????????? | | ?????????????????# #?????????????????????????????? | | ???????????????### ###???????????????????????????? | | ???????????????#! /######??????????????????????? | | +??????????????#! /s @+??????????????????????? | | ???????????????#! /######??????????????????????? | | ???????????????#!! //#?????++????????????????????? | | ???????????????#######???????????????????????????? | | +++???+??????????????????????????????????????????? | | ?????????????????????????????????????????????????? | | ?????????????????????????????????????????????????? | | ?????????????????????????????????????????????????? | | ?????????????????????????????????????????????????? | | ?????????????????????????????????????????????????? | | ?????????????????????????????????????????????????? | | ?????????????????????????????????????????????????? | | ?????????????????????????????????????????????????? | | ?????????????????????????????????????????????????? | | ?????????????????????????????????????????????????? | | ?????????????????????????????????????????????????? | | ?????????????????????????????????????????????????? | | ?????????????????????????????????????????????????? | | ?????????????????????????????????????????????????? | | ?????????????????????????????????????????????????? | | ?????????????????????????????????????????????????? | | ?????????????????????????????????????????????????? | | ?????????????????????????????????????????????????? | | ?????????????????????????????????????????????????? | | ?????????????????????????????????????????????????? | +----------------------------------------------------+ Best States ------------- Heat Dissipation 45 Energy Generation 14 Energy Capacity 250 Matter Stores 300 Matter Capacity 300 Sight Range 16 Terrain Scan Density 10 Armor Coverage 225 Evasion (%) 50 Item Schematics ----------------- None Robot Schematics ------------------ None Fabricated ------------ Nothing Repaired ---------- Nothing Alien Tech Used ----------------- None Achievements -------------- Error 47 Factory Defaults Challenges ------------ None Game ------ Seed IntegratedRapidFlightbrick Manual? 0 Play Time 00:39:24 Cumulative 57.0 hours Start 2025.07.25 @ 22:39:13 End 2025.07.25 @ 23:31:46 Sessions 1 Manual Loads 0 Difficulty Rogue Special Mode None Game No. 77 Rogue 77 Adventurer 0 Explorer 0 Win Type - Total 0 Types 0/0/0/0/0/0/0/0/0/0 Lore% 41 Gallery% 33 Achievement% 34 Wizard Run 0 Options --------- Layout 1 ASCII 0 Keyboard 0 Movement Arrows Keybinds 0 Fullscreen 1 Font 24/Smallcaps Map View 50x35 Zoom Use 0% Tactical HUD 1 Map Filters NONE Filters NONE Steam 1 RUN: d5d75064-594e-4bab-8c61-cd50893cbebf